bitfinex/quotes_SOLUSD_20250724
["timestamp","ask_amount","ask_price","bid_price","bid_amount"]
[1753350582021,10.0,184.88,184.86,2.81827356]
[1753350582221,10.0,184.88,184.72,0.66]
[1753350582222,10.0,184.85,184.72,0.66]
[1753350582423,11.62227721,184.75,184.72,0.66]
[1753350582622,11.62227721,184.76,184.73,0.66]
[1753350582822,26.0,184.79,184.73,0.66]
[1753350582823,0.17220038,184.78,184.73,0.66]
[1753350583022,11.62227721,184.77,184.73,0.66]
[1753350583445,26.0,184.79,184.68,6.1283]
[1753350583446,0.17220038,184.76,184.74,0.67]
[1753350583672,17.03204316,184.86,184.75,12.29227721]
[1753350583839,11.62227721,184.83,184.77,11.62227721]
[1753350584146,43.03204316,184.86,184.71,5.41385899]
[1753350584147,11.62227721,184.82,184.78,0.67]
[1753350584329,45.34,184.87,184.75,0.67]
[1753350584528,11.62227721,184.81,184.75,12.29227721]
[1753350584945,11.62227721,184.82,184.75,0.67]
[1753350585245,11.62227721,184.78,184.72,0.67]
[1753350585542,11.62227721,184.77,184.72,0.67]
[1753350586037,11.62227721,184.78,184.73,0.67]
[1753350586548,11.62227721,184.79,184.73,11.62227721]
[1753350586743,11.62227721,184.78,184.73,11.62227721]
[1753350586939,0.18,184.84,184.74,12.29227721]
[1753350587144,16.34404571,184.88,184.75,11.62227721]
[1753350587145,11.62227721,184.81,184.75,11.62227721]
[1753350587343,11.62227721,184.81,184.75,0.67]
[1753350587533,11.62227721,184.79,184.73,11.62227721]
[1753350587726,26.0,184.82,184.73,11.62227721]
[1753350587939,37.62227721,184.8,184.74,11.62227721]
[1753350588144,37.62227721,184.8,184.74,12.29227721]
[1753350589126,26.0,184.8,184.74,12.29227721]
[1753350589448,37.62227721,184.8,184.74,12.29227721]
[1753350589858,37.62227721,184.8,184.75,11.394618]
[1753350590034,37.62227721,184.8,184.74,6.08300114]
[1753350590035,37.62227721,184.8,184.74,17.70527835]
[1753350590239,0.18,184.84,184.74,17.70527835]
[1753350590240,44.88,184.82,184.78,11.62227721]
[1753350590443,44.9,184.83,184.79,11.62227721]
[1753350590750,11.62227721,184.85,184.79,0.67]
[1753350591047,5.40960924,184.86,184.79,0.67]
[1753350591048,3.72955362,184.82,184.79,0.67]
[1753350591438,3.72955362,184.82,184.78,11.62227721]
[1753350591631,3.72955362,184.82,184.78,12.29227721]
[1753350592247,3.72955362,184.82,184.79,0.67]
[1753350592651,3.72955362,184.82,184.8,0.67]
[1753350593029,42.78468397,184.87,184.77,5.41212773]
[1753350593030,0.18,185.01,184.85,26.0]
[1753350593230,5.58525184,185.01,184.96,11.62227721]
[1753350593531,7.20029274,185.0,184.92,0.67]
[1753350593850,7.20029274,185.0,184.85,26.0]
[1753350593851,11.62227721,184.95,184.9,11.62227721]
[1753350594037,3.02241257,184.96,184.93,11.62227721]
[1753350594240,3.02241257,184.96,184.94,0.67]
[1753350594962,11.62227721,184.95,184.91,0.67]
[1753350595268,11.62227721,184.92,184.88,0.67]
[1753350595437,11.62227721,184.92,184.89,0.67]
[1753350595940,11.62227721,184.93,184.89,0.67]
[1753350596138,11.62227721,184.93,184.9,0.67]
[1753350596454,0.5,184.95,184.9,0.67]
[1753350596455,11.62227721,184.94,184.9,0.67]
[1753350596653,11.62227721,184.94,184.91,0.67]
[1753350597736,0.5,184.95,184.92,12.29227721]
[1753350597938,3.02241257,184.96,184.93,12.29227721]
[1753350598245,3.02241257,184.96,184.95,11.62227721]
[1753350598450,3.02241257,184.96,184.95,12.29227721]
[1753350598646,3.02241257,184.96,184.95,9.75607721]
[1753350599154,6.46700388,184.96,184.95,9.75607721]
[1753350599443,3.44459131,184.96,184.95,9.75607721]
[1753350599645,3.44459131,184.96,184.95,15.16294393]
[1753350599849,3.44459131,184.96,184.95,6.07686672]
[1753350600047,3.44459131,184.96,184.95,17.69914393]
[1753350600258,3.97209214,184.98,184.95,17.69914393]
[1753350600440,3.97209214,184.98,184.97,11.62227721]
[1753350600763,3.97209214,184.98,184.97,12.29227721]
[1753350601143,3.97209214,184.98,184.94,0.67]
[1753350601341,3.97209214,184.98,184.91,2.68211573]
[1753350601342,3.97209214,184.98,184.95,12.29227721]
[1753350601564,3.97209214,184.98,184.97,11.62227721]
[1753350601762,0.86549214,184.98,184.97,17.6985593]
[1753350602066,0.2,185.01,184.98,6.3193]
[1753350602236,0.2,185.01,185.0,11.62227721]
[1753350602654,0.2,185.01,185.0,12.29227721]
[1753350603178,9.74167854,185.11,185.0,12.29227721]
[1753350603179,4.02611877,185.11,185.0,0.67]
[1753350603339,15.64839598,185.11,185.0,0.67]
[1753350603543,15.64839598,185.11,185.06,11.62227721]
[1753350604662,4.02611877,185.11,185.07,11.62227721]
[1753350604854,30.02611877,185.11,185.07,11.62227721]
[1753350605162,4.02611877,185.11,185.07,11.62227721]
[1753350606061,4.02611877,185.11,185.06,5.40360255]
[1753350606361,4.02611877,185.11,185.0,13.51337226]
[1753350606362,15.64839598,185.11,185.03,0.67]
[1753350606566,11.62227721,185.07,185.0,0.67]
[1753350606864,12.29227721,185.1,185.05,11.62227721]
[1753350607067,12.29227721,185.1,185.03,0.67]
[1753350607375,0.67,185.1,185.05,11.62227721]
[1753350607547,0.67,185.1,185.06,11.62227721]
[1753350608556,0.67,185.09,185.05,11.62227721]
[1753350608948,0.67,185.08,185.04,11.62227721]
[1753350609150,42.31839598,185.11,185.05,11.62227721]
[1753350609350,42.31839598,185.11,185.06,11.62227721]
[1753350609576,42.31839598,185.11,185.05,12.29227721]
[1753350609766,47.05064649,185.11,185.05,11.62227721]
[1753350610378,30.02611877,185.11,185.06,11.62227721]
[1753350610674,4.02611877,185.11,185.09,11.62227721]
[1753350610842,4.02611877,185.11,185.08,11.62227721]
[1753350611459,4.02611877,185.11,185.09,11.62227721]
[1753350612052,4.02611877,185.11,185.08,0.67]
[1753350612053,4.02611877,185.11,185.08,12.29227721]
[1753350612257,4.02611877,185.11,185.09,12.29227721]
[1753350612456,4.02611877,185.11,185.09,0.67]
[1753350612654,4.02611877,185.11,185.08,11.62227721]
[1753350613379,4.05611877,185.11,185.08,11.62227721]
[1753350615759,4.05611877,185.11,185.08,12.29227721]
[1753350615967,4.73611877,185.11,185.04,6.07423692]
[1753350616194,4.73611877,185.11,185.06,11.62227721]
[1753350616478,4.05611877,185.11,185.07,12.29227721]
[1753350617273,4.05611877,185.11,185.09,11.62227721]
[1753350617473,4.05611877,185.11,185.1,11.62227721]
[1753350617677,4.05611877,185.11,185.08,6.07305693]
[1753350617882,4.05611877,185.11,185.09,11.62227721]
[1753350618061,4.05611877,185.11,185.09,12.29227721]
[1753350618976,4.05611877,185.11,185.05,44.17]
[1753350619191,15.67839598,185.11,185.06,11.62227721]
[1753350619360,4.05611877,185.11,185.07,11.62227721]
[1753350619965,4.05611877,185.11,185.07,12.29227721]
[1753350620496,4.05611877,185.11,185.08,12.29227721]
[1753350620662,4.05611877,185.11,185.09,12.29227721]
[1753350620997,4.05611877,185.11,185.1,12.29227721]
[1753350621682,4.05611877,185.11,185.1,17.69476235]
[1753350622087,4.05611877,185.11,185.1,12.29227721]
[1753350622289,4.05611877,185.11,185.1,17.69476235]
[1753350622290,0.03,185.11,185.1,17.69476235]
[1753350622481,0.03,185.11,185.1,6.07248514]
[1753350622678,0.03,185.11,185.1,17.69476235]
[1753350623189,0.03,185.11,185.1,13.78175167]
[1753350623885,0.03,185.11,185.07,0.67]
[1753350624086,0.03,185.11,185.08,7.70926653]
[1753350624488,0.03,185.11,185.09,7.70926653]
[1753350625989,0.03,185.11,185.1,7.70926653]
[1753350627766,0.03,185.11,185.1,13.78175167]
[1753350628794,7.73926653,185.19,185.1,50.22024849]
[1753350628795,0.03,185.19,185.1,50.22024849]
[1753350628975,0.03,185.19,185.18,7.70926653]
[1753350629178,0.03,185.19,185.11,1.21021932]
[1753350629179,0.03,185.19,185.17,7.70926653]
[1753350629678,0.03,185.19,185.15,5.4009804]
[1753350629998,0.03,185.19,185.18,7.70926653]
[1753350630188,0.03,185.19,185.17,7.70926653]
[1753350631592,0.03,185.19,185.18,7.70926653]
[1753350632494,0.71,185.19,185.1,6.8176]
[1753350632691,0.71,185.19,185.12,7.70926653]
[1753350632692,7.70926653,185.17,185.12,7.70926653]
[1753350632882,8.20926653,185.18,185.13,7.70926653]
[1753350633083,8.20926653,185.18,185.11,42.9]
[1753350633084,8.38926653,185.16,185.11,7.70926653]
[1753350633295,0.68,185.15,185.11,50.58926653]
[1753350633605,0.68,185.15,185.12,7.70926653]
[1753350634209,7.70926653,185.17,185.12,7.70926653]
[1753350634392,0.68,185.17,185.12,7.70926653]
[1753350634579,0.68,185.17,185.13,7.70926653]
[1753350635407,8.20926653,185.18,185.13,7.70926653]
[1753350635408,0.68,185.16,185.13,7.70926653]
[1753350636105,6.58017217,185.18,185.14,7.70926653]
[1753350636308,0.68,185.17,185.14,7.70926653]
[1753350637204,0.5,185.18,185.16,7.70926653]
[1753350637392,0.03,185.19,185.17,7.70926653]
[1753350637592,0.03,185.19,185.18,7.70926653]
[1753350639109,0.03,185.19,185.18,13.77941773]
[1753350639285,0.03,185.19,185.18,8.37926653]
[1753350640008,0.03,185.19,185.18,13.77941773]
[1753350640603,0.03,185.19,185.18,16.51694463]
[1753350642987,0.03,185.19,185.18,33.3016286]
[1753350643732,0.03,185.23,185.19,16.78468397]
[1753350643914,0.03,185.23,185.22,7.70926653]
[1753350644107,0.03,185.23,185.22,50.14926653]
[1753350644311,0.03,185.23,185.22,50.83926653]
[1753350645508,0.03,185.23,185.22,56.23825152]
[1753350646300,0.74,185.23,185.16,0.69]
[1753350646499,7.70926653,185.22,185.17,7.70926653]
[1753350646700,0.03,185.23,185.2,7.70926653]
[1753350646908,0.03,185.23,185.16,8.13607629]
[1753350646909,0.03,185.23,185.22,7.70926653]
[1753350647113,0.03,185.23,185.22,50.04926653]
[1753350647318,0.03,185.23,185.22,50.73926653]
[1753350647709,0.03,185.23,185.22,50.04926653]
[1753350648606,0.03,185.23,185.22,56.13825152]
[1753350649818,0.03,185.23,185.22,62.72635152]
[1753350650898,0.03,185.23,185.22,79.51103549]
[1753350651514,0.03,185.23,185.22,87.22030202]
[1753350651718,0.03,185.23,185.22,79.51103549]
[1753350652196,0.03,185.23,185.22,71.80176896]
[1753350652505,0.03,185.23,185.22,79.51103549]
[1753350655814,0.2,185.3,185.24,16.78468397]
[1753350656025,0.2,185.3,185.29,7.70926653]
[1753350656205,0.2,185.3,185.29,66.5339505]
[1753350656516,0.2,185.3,185.29,0.69]
[1753350656819,0.2,185.3,185.27,0.53975279]
[1753350656820,0.91,185.3,185.27,7.70926653]
[1753350657005,0.91,185.3,185.29,42.02]
[1753350658510,0.91,185.3,185.27,7.70926653]
[1753350658730,0.91,185.3,185.28,42.0]
[1753350659115,0.91,185.3,185.27,7.70926653]
[1753350659326,0.91,185.3,185.28,41.98]
[1753350659712,0.71,185.29,185.25,7.70926653]
[1753350659915,0.71,185.28,185.26,41.92]
[1753350660111,0.5,185.29,185.26,41.92]
[1753350660314,8.41926653,185.27,185.2,89.0]
[1753350660520,8.41926653,185.26,185.21,49.62926653]
[1753350660710,0.71,185.25,185.22,7.70926653]
[1753350660905,0.71,185.25,185.23,41.88]
[1753350661508,0.5,185.29,185.23,41.88]
[1753350661704,0.71,185.28,185.24,49.56926653]
[1753350661923,0.5,185.29,185.26,7.70926653]
[1753350662236,1.21,185.29,185.26,7.70926653]
[1753350662404,0.71,185.28,185.25,41.86]
[1753350662610,0.71,185.27,185.25,41.86]
[1753350662814,0.71,185.26,185.25,41.84]
[1753350664626,5.39694532,185.29,185.25,41.84]
[1753350664831,26.2,185.3,185.26,7.70926653]
[1753350664832,5.59670583,185.3,185.26,7.70926653]
[1753350665030,0.71,185.29,185.26,7.70926653]
[1753350665635,0.71,185.28,185.26,7.70926653]
[1753350665820,0.71,185.28,185.25,49.54926653]
[1753350666020,0.71,185.28,185.25,7.70926653]
[1753350666225,0.71,185.28,185.26,41.8]
[1753350667018,5.39699154,185.29,185.26,41.8]
[1753350667234,5.39699154,185.29,185.25,41.72]
[1753350667235,8.41926653,185.27,185.25,41.72]
[1753350667536,0.71,185.26,185.25,41.72]
[1753350667716,8.41926653,185.26,185.25,41.72]
[1753350667912,13.10625807,185.29,185.25,41.72]
[1753350668314,0.71,185.28,185.25,41.72]
[1753350668822,6.1074158,185.28,185.25,41.72]
[1753350669231,13.10668233,185.28,185.26,41.7]
[1753350669442,13.10668233,185.28,185.19,0.75]
[1753350669443,8.41926653,185.27,185.19,0.75]
[1753350669639,7.70926653,185.25,185.2,7.70926653]
[1753350669951,8.41926653,185.25,185.2,49.36926653]
[1753350670141,0.71,185.24,185.2,41.66]
[1753350670339,0.71,185.23,185.2,41.66]
[1753350670539,7.70926653,185.25,185.2,41.66]
[1753350670540,0.71,185.24,185.2,41.66]
[1753350670856,0.71,185.24,185.21,41.66]
[1753350671343,5.39820053,185.25,185.21,41.66]
[1753350671517,8.41926653,185.24,185.21,41.66]
[1753350671717,0.71,185.23,185.19,7.76926653]
[1753350671945,0.71,185.23,185.2,41.62]
[1753350672653,0.71,185.22,185.19,0.06]
[1753350672823,13.81746706,185.25,185.2,49.30926653]
[1753350673255,13.81746706,185.25,185.2,49.96926653]
[1753350673625,7.70926653,185.23,185.2,41.6]
[1753350673854,0.72,185.22,185.2,41.6]
[1753350676440,0.72,185.27,185.21,8.36926653]
[1753350676642,0.72,185.27,185.23,7.70926653]
[1753350677041,0.72,185.26,185.23,7.70926653]
[1753350677428,0.72,185.26,185.23,49.14926653]
[1753350677629,0.72,185.26,185.24,7.70926653]
[1753350678628,0.72,185.26,185.23,41.44]
[1753350678824,0.72,185.26,185.24,7.70926653]
[1753350679251,0.72,185.25,185.23,41.44]
[1753350679561,0.72,185.24,185.21,41.34]
[1753350679756,0.72,185.24,185.19,7.76926653]
[1753350679757,0.72,185.23,185.19,7.76926653]
[1753350680057,0.72,185.22,185.19,41.4]
[1753350680835,6.11900034,185.22,185.19,41.4]
[1753350681661,0.72,185.22,185.19,41.4]
[1753350681862,26.0,185.27,185.19,41.4]
[1753350681863,0.72,185.27,185.21,7.70926653]
[1753350682036,0.72,185.27,185.19,46.79979189]
[1753350682037,7.70926653,185.25,185.19,0.06]
[1753350682234,0.72,185.24,185.2,48.96926653]
[1753350682938,0.72,185.24,185.22,7.70926653]
[1753350683145,31.39797144,185.26,185.22,7.70926653]
[1753350683340,32.11797144,185.26,185.22,7.70926653]
[1753350683666,26.72,185.26,185.22,7.70926653]
[1753350683956,32.11784863,185.26,185.22,7.70926653]
[1753350684450,31.39784863,185.26,185.22,7.70926653]
[1753350684655,0.72,185.25,185.22,7.70926653]
[1753350685732,6.11819264,185.25,185.22,7.70926653]
[1753350686252,13.49242444,185.29,185.24,7.70926653]
[1753350686253,0.72,185.29,185.24,7.70926653]
[1753350686456,7.90926653,185.3,185.24,7.70926653]
[1753350686662,0.72,185.28,185.24,7.70926653]
[1753350687443,0.92,185.3,185.26,7.70926653]
[1753350687644,0.2,185.3,185.26,7.70926653]
[1753350687857,0.72,185.29,185.26,7.70926653]
[1753350689155,0.72,185.28,185.25,7.70926653]
[1753350689359,5.39697536,185.29,185.25,7.70926653]
[1753350689559,0.72,185.29,185.26,7.70926653]
[1753350689862,0.2,185.3,185.28,7.70926653]
[1753350690064,0.2,185.3,185.29,7.70926653]
[1753350690739,0.2,185.3,185.27,0.66]
[1753350690950,0.2,185.3,185.28,7.70926653]
[1753350691461,0.2,185.3,185.27,7.70926653]
[1753350691660,0.72,185.29,185.26,7.70926653]
[1753350692467,0.2,185.3,185.26,7.70926653]
[1753350692767,0.72,185.29,185.24,0.66]
[1753350693064,13.30598147,185.3,185.25,7.70926653]
[1753350693262,8.42926653,185.28,185.23,48.84926653]
[1753350693569,0.72,185.27,185.23,41.14]
[1753350693952,0.72,185.27,185.23,48.84926653]
[1753350694267,8.42926653,185.29,185.24,7.70926653]
[1753350694768,13.82624091,185.29,185.24,7.70926653]
[1753350694969,13.82624091,185.29,185.23,47.1986416]
[1753350695172,13.82624091,185.29,185.24,7.70926653]
[1753350695363,0.72,185.28,185.19,89.06]
[1753350695666,26.0,185.26,185.19,0.06]
[1753350695967,7.70926653,185.22,185.19,0.06]
[1753350696174,7.70926653,185.23,185.19,0.06]
[1753350696543,8.42926653,185.23,185.19,0.06]
[1753350696739,8.42926653,185.25,185.19,0.06]
[1753350696944,5.39747274,185.28,185.24,7.70926653]
[1753350697341,13.10673927,185.28,185.23,7.70926653]
[1753350697547,0.72,185.27,185.23,7.70926653]
[1753350698449,6.11755133,185.27,185.24,7.70926653]
[1753350698880,6.11755133,185.27,185.21,47.25913976]
[1753350698881,6.11755133,185.27,185.23,7.70926653]
[1753350699181,0.72,185.26,185.23,7.70926653]
[1753350699347,6.11755133,185.27,185.23,7.70926653]
[1753350701675,6.11755133,185.27,185.23,0.66]
[1753350701865,6.11755133,185.27,185.24,7.70926653]
[1753350702163,6.11755133,185.27,185.23,0.66]
[1753350702368,5.39755133,185.27,185.23,7.70926653]
[1753350702583,0.72,185.26,185.23,7.70926653]
[1753350703179,6.11782613,185.26,185.23,4.72467157]
[1753350703350,6.06723661,185.28,185.23,4.72467157]
[1753350703973,0.67,185.27,185.24,4.72467157]
[1753350704389,5.39723661,185.28,185.19,105.84468397]
[1753350704390,30.72467157,185.25,185.19,0.06]
[1753350704673,4.72467157,185.23,185.19,0.06]
[1753350704874,0.67,185.22,185.19,0.06]
[1753350705174,5.39927649,185.21,185.19,0.06]
[1753350705766,0.67,185.2,185.19,0.06]
[1753350705969,5.39467157,185.2,185.19,0.06]
[1753350706962,0.67,185.22,185.19,0.06]
[1753350707169,6.06915851,185.22,185.19,0.06]
[1753350707377,13.10254211,185.22,185.19,0.06]
[1753350707672,7.7033836,185.2,185.19,0.06]
[1753350708175,8.3733836,185.2,185.19,0.06]
[1753350708950,26.0,185.17,185.15,0.06]
[1753350709172,7.7033836,185.16,185.15,0.06]
[1753350709482,13.77411809,185.16,185.15,0.06]
[1753350709781,6.07073449,185.16,185.15,0.06]
[1753350709970,32.07073449,185.16,185.15,0.06]
[1753350710974,56.55880206,185.16,185.15,0.06]
[1753350711309,26.0,185.14,185.11,0.06]
[1753350711481,26.0,185.09,185.06,0.06]
[1753350711786,26.0,185.09,185.06,7.7633836]
[1753350712151,26.0,185.09,185.06,0.06]
[1753350713177,31.40279439,185.09,185.06,0.06]
[1753350713553,26.0,185.09,185.06,0.06]
[1753350713755,7.7033836,185.07,185.06,0.06]
[1753350714259,8.3733836,185.07,185.06,0.06]
[1753350714960,13.77674449,185.07,185.06,0.06]
[1753350715564,6.07336089,185.07,185.06,0.06]
[1753350715758,26.0,185.07,185.06,0.06]
[1753350716066,7.7033836,185.11,185.06,7.7633836]
[1753350716263,26.0,185.1,185.06,8.4833836]
[1753350716577,0.67,185.12,185.06,8.4833836]
[1753350716578,8.3733836,185.12,185.06,8.4833836]
[1753350716957,13.77528506,185.12,185.06,8.4833836]
[1753350717174,13.77528506,185.12,185.07,7.7033836]
[1753350717374,13.77528506,185.12,185.07,0.72]
[1753350718476,13.77528506,185.12,185.06,7.7633836]
[1753350718676,8.3733836,185.12,185.07,7.7033836]
[1753350718877,26.0,185.13,185.09,7.7033836]
[1753350719093,6.07109964,185.15,185.07,5.40319796]
[1753350719384,13.10448324,185.15,185.1,8.4233836]
[1753350719564,7.7033836,185.14,185.1,0.72]
[1753350719765,7.7033836,185.14,185.07,5.40319796]
[1753350719979,8.3733836,185.14,185.08,8.4233836]
[1753350720360,13.49995915,185.19,185.08,8.4233836]
[1753350720361,23.8012426,185.24,185.09,7.7033836]
[1753350720560,7.7033836,185.16,185.11,7.7033836]
[1753350720783,7.7033836,185.19,185.14,7.7033836]
[1753350721162,34.3733836,185.19,185.14,7.7033836]
[1753350721481,34.3733836,185.19,185.15,7.7033836]
[1753350721482,26.67,185.19,185.15,7.7033836]
[1753350721862,26.0,185.19,185.15,8.4233836]
[1753350722066,13.49564216,185.25,185.09,41.94]
[1753350722067,13.49336912,185.28,185.18,7.7033836]
[1753350722263,7.7033836,185.26,185.21,7.7033836]
[1753350722569,7.7033836,185.24,185.19,7.7033836]
[1753350722770,8.3733836,185.23,185.18,7.7033836]
[1753350722993,0.67,185.23,185.18,7.7033836]
[1753350723289,13.10121419,185.26,185.21,7.7033836]
[1753350723472,13.10121419,185.26,185.17,6.4034]
[1753350723473,8.3733836,185.28,185.23,7.7033836]
[1753350723788,39.77067711,185.28,185.23,7.7033836]
[1753350724093,7.7033836,185.25,185.2,7.7033836]
[1753350724389,5.39869351,185.23,185.18,0.72]
[1753350724579,8.3733836,185.22,185.17,14.1067836]
[1753350724778,0.67,185.22,185.18,7.7033836]
[1753350724980,0.67,185.22,185.19,7.7033836]
[1753350725192,8.3733836,185.24,185.19,7.7033836]
[1753350725973,13.10181507,185.24,185.19,7.7033836]
[1753350726175,39.49309153,185.28,185.17,11.80379151]
[1753350726176,33.7033836,185.25,185.2,8.4233836]
[1753350726373,34.3733836,185.25,185.2,8.4233836]
[1753350727369,0.03,185.23,185.2,8.4233836]
[1753350727566,0.03,185.23,185.22,7.7033836]
[1753350727990,0.03,185.23,185.22,13.82236859]
[1753350728202,0.03,185.23,185.22,30.60705256]
[1753350728491,0.03,185.23,185.22,72.32705256]
[1753350728690,0.03,185.23,185.22,74.98428397]
[1753350728891,0.03,185.23,185.22,83.22756606]
[1753350729284,0.03,185.29,185.22,96.72502853]
[1753350729487,0.03,185.29,185.28,7.7033836]
[1753350730001,0.03,185.29,185.28,8.4233836]
[1753350730376,0.03,185.29,185.28,7.7033836]
[1753350730804,0.03,185.29,185.28,8.4233836]
[1753350731499,0.03,185.29,185.28,13.82062021]
[1753350732691,0.03,185.29,185.28,0.72]
[1753350732899,0.03,185.29,185.28,8.4233836]
[1753350733108,0.03,185.29,185.28,13.82062021]
[1753350733397,0.03,185.29,185.28,6.11723661]
[1753350733586,0.03,185.29,185.28,8.4233836]
[1753350734091,0.03,185.29,185.28,13.82062021]
[1753350734706,0.03,185.29,185.28,55.42062021]
[1753350735012,0.03,185.29,185.28,72.20530418]
[1753350735182,0.03,185.29,185.28,72.74502784]
[1753350735587,0.03,185.29,185.28,161.74502784]
[1753350735786,0.03,185.29,185.28,161.20530418]
[1753350737196,0.03,185.29,185.28,187.20530418]
[1753350737496,0.2,185.3,185.29,24.48806757]
[1753350737695,0.2,185.3,185.29,25.7177621]
[1753350738001,0.2,185.3,185.29,114.7177621]
[1753350738188,0.2,185.3,185.29,25.17806757]
[1753350738500,0.2,185.3,185.29,66.71806757]
[1753350738703,0.2,185.3,185.29,72.11501289]
[1753350739096,0.2,185.3,185.29,0.69]
[1753350739394,0.2,185.3,185.29,41.52]
[1753350739586,0.2,185.3,185.29,49.2233836]
[1753350740006,0.2,185.3,185.29,49.9133836]
[1753350740805,0.2,185.3,185.29,72.09501289]
[1753350742410,0.2,185.3,185.29,72.63470742]
[1753350742585,0.2,185.3,185.29,98.63470742]
[1753350743194,1e-08,185.3,185.29,98.63470742]
[1753350743410,0.03,185.33,185.3,16.78468397]
[1753350743583,0.03,185.33,185.32,24.48806757]
[1753350744000,0.03,185.33,185.32,25.17806757]
[1753350744302,0.03,185.34,185.33,16.78468397]
[1753350744482,0.03,185.35,185.33,163.82102921]
[1753350744798,0.03,185.35,185.34,64.27694054]
[1753350744995,0.72,185.45,185.37,16.78468397]
[1753350745197,0.2,185.46,185.37,16.78468397]
[1753350745198,0.2,185.46,185.37,66.40752918]
[1753350745397,0.2,185.46,185.37,67.09752918]
[1753350745706,0.2,185.46,185.37,66.55806757]
[1753350746288,5.5922238,185.46,185.37,66.55806757]
[1753350746494,5.39237287,185.45,185.37,66.55806757]
[1753350746685,0.72,185.44,185.37,66.55806757]
[1753350747006,0.72,185.44,185.37,71.95268374]
[1753350748303,0.2,185.46,185.37,71.95268374]
[1753350748607,0.2,185.46,185.37,187.49214535]
[1753350748785,0.2,185.46,185.37,186.95268374]
[1753350749284,0.2,185.46,185.41,16.78468397]
[1753350749489,0.2,185.46,185.45,7.7033836]
[1753350749690,0.2,185.46,185.45,48.9233836]
[1753350750105,0.2,185.46,185.42,0.69]
[1753350750315,0.2,185.46,185.41,16.78468397]
[1753350750316,0.92,185.46,185.44,7.7033836]
[1753350750495,0.92,185.46,185.45,41.2]
[1753350750689,0.92,185.46,185.45,48.9033836]
[1753350750904,0.2,185.46,185.45,48.9033836]
[1753350752515,0.2,185.46,185.45,54.29567262]
[1753350752898,0.2,185.46,185.45,54.98567262]
[1753350754617,0.2,185.46,185.45,64.06697299]
[1753350754919,0.2,185.46,185.45,71.77035659]
[1753350755090,0.2,185.46,185.45,71.63035659]
[1753350756334,0.2,185.46,185.45,85.76884019]
[1753350756716,0.2,185.46,185.45,78.06545659]
[1753350756915,0.2,185.46,185.45,80.72407923]
[1753350759310,0.2,185.46,185.45,77.73190118]
[1753350764704,0.2,185.46,185.45,2.71862264]
[1753350765016,0.2,185.46,185.43,89.0]
[1753350765017,11.01320382,185.46,185.43,89.0]
[1753350765204,0.71,185.45,185.44,40.76]
[1753350765404,5.42120555,185.45,185.44,40.78]
[1753350765806,4.71120555,185.45,185.39,4.71120555]
[1753350766007,0.71,185.44,185.4,40.76]
[1753350766212,0.71,185.43,185.4,40.76]
[1753350768130,0.71,185.43,185.4,50.86490245]
[1753350768427,0.71,185.43,185.4,45.47120555]
[1753350768620,0.71,185.42,185.4,45.47120555]
[1753350769632,0.71,185.42,185.4,50.86490301]
[1753350769926,0.71,185.45,185.41,4.71120555]
[1753350770224,0.71,185.44,185.42,40.66]
[1753350770922,0.71,185.43,185.42,40.66]
[1753350776517,0.2,185.46,185.42,51.44430583]
[1753350776718,0.2,185.46,185.45,47.49588952]
[1753350776909,0.2,185.46,185.45,88.09588952]
[1753350777216,0.2,185.46,185.45,22.03511842]
[1753350777411,0.2,185.46,185.45,4.71120555]
[1753350777617,0.2,185.46,185.45,45.31120555]
[1753350778122,0.2,185.46,185.45,62.77588952]
[1753350778923,0.2,185.46,185.45,68.16817854]
[1753350780529,0.2,185.46,185.45,94.16817854]
[1753350780729,0.2,185.49,185.48,26.20709507]